{"text_format":"3","workbook":"xlsx","n_sheets":2,"sheets":["Obrazac ponude","Analiza troškova"],"not_rendered":{"charts":1,"images":2,"defined_names":4},"read":"whole","date_system":"1900"}

{"sheet":"Obrazac ponude","index":0,"n_rows":48,"n_cols":7,"rows_kept":48,"merged":[[15,1,25,5],[29,1,31,5],[35,1,37,5],[43,1,45,5]]}
[]
[null,"OBRAZAC GRAĐEVINSKE PONUDE",{"$nulls":4}," "]
[]
[]
[null,"INFORMACIJE O VLASNIKU",null,null,"INFORMACIJE O IZVOĐAČU"]
[null,"Ime","Mihajlo Tasić",null,"Preduzeće","Fabrikam, Inc."]
[null,"Adresa","Glavna ulica 123",null,"Ime","Jovan Kocić"]
[null,"Grad, država, poštanski broj","Zelengora, CO 12345",null,"Adresa","Južna ulica 321"]
[null,"Telefon",8885550111,null,"Grad, država, poštanski broj","Zelengora, CO 12345"]
[null,"E-adresa","mihajlo@proseware.com",null,"Telefon",8885550123]
[{"$nulls":4},"E-adresa","jovan@fabrikam.com"]
[null,"Ime projekta","Stepenište do posla",null,"Datum dovršavanja","2013-07-14"]
[]
[null,"OPSEG POSLA"]
[]
[null,"Ovde ide opseg posla iz projekta. Otkucajte sve željene specifikacije. Ovo će biti lažni projekat izgradnje velikog stepeništa. Za izgradnju okvira ćemo koristiti samo drvenu građu dimenzija 2x4 i 2x8, kao i podupirače od greda. Stepenište će se izrezati od materijala dimenzija 2x4. Koristiće se zavrtnji veličine 2\", ne manji. Svi ekseri će biti od 10 penija. Predviđena težina će iznositi minimalno 225 kg po stepeniku. Stepenici će biti u nivou kuće. Na kuću će biti pričvršćena potporna tabla. Izvođač će se pobrinuti za čišćenje."]
{"$rows_empty":11}
[null,"NIJE UKLJUČENO"]
[]
[null,"Neće se postavljati balustrada. Vlasnik priprema teren. Vlasnik će farbati stepenište."]
[]
[]
[]
[null,"PREDLOG PREDUZEĆA"]
[]
[null,"Naše preduzeće, Fabrikam, Inc., predlaže gorenavedeni opseg posla za datumom završetka 14.7.2011. za iznos od 476,43 USD."]
[]
[]
[]
[null,"Dostavio (predstavnik preduzeća)",{"$nulls":3},"Datum"]
[]
[null,"POTVRDA VLASNIKA"]
[]
[null,"Ja, Mihajlo Tasić, prihvatam gorenavedeni opseg posla sa predloženim datumom završetka 14.7.2011. za iznos od 476,43 USD."]
[]
[]
[]
[null,"Dostavio (vlasnik kuće ili ovlašćeni predstavnik)",{"$nulls":3},"Datum"]

{"sheet":"Analiza troškova","index":1,"n_rows":47,"n_cols":6,"rows_kept":47,"merged":[[42,3,42,4],[43,3,43,4],[44,3,44,4],[45,3,45,4],[46,3,46,4],[47,3,47,4],[48,3,48,4],[49,3,49,4]]}
[]
[null,"REZIME TROŠKOVA U PONUDI",{"$nulls":3}," "]
[]
[]
[null,"LISTA MATERIJALA I TROŠKOVA"]
[]
[null,"Kol.","Opis","Troškovi","Ukupno"," "]
[null,5,"2x8x10 drvena građa",{"v":6.75,"d":"6.75 Din."},{"$f":"BidItems[Troškovi]*BidItems[Kol.]","v":{"v":33.75,"d":"33.75 Din."}},{"$f":"_xlfn.RANK.EQ(BidItems[[#This Row],[Ukupno]],BidItems[Ukupno])","v":4}]
[null,20,"2x4x10 drvena građa",{"v":4.97,"d":"4.97 Din."},{"$f":"BidItems[Troškovi]*BidItems[Kol.]","v":{"v":99.39999999999999,"d":"99.40 Din."}},{"$f":"_xlfn.RANK.EQ(BidItems[[#This Row],[Ukupno]],BidItems[Ukupno])","v":2}]
[null,30,"Podupirači od greda",{"v":2.49,"d":"2.49 Din."},{"$f":"BidItems[Troškovi]*BidItems[Kol.]","v":{"v":74.7,"d":"74.70 Din."}},{"$f":"_xlfn.RANK.EQ(BidItems[[#This Row],[Ukupno]],BidItems[Ukupno])","v":3}]
[null,2,"Kutija zavrtanja, 2 inča",{"v":6.67,"d":"6.67 Din."},{"$f":"BidItems[Troškovi]*BidItems[Kol.]","v":{"v":13.34,"d":"13.34 Din."}},{"$f":"_xlfn.RANK.EQ(BidItems[[#This Row],[Ukupno]],BidItems[Ukupno])","v":6}]
[null,2,"Kutija eksera, 10 penija",{"v":3.25,"d":"3.25 Din."},{"$f":"BidItems[Troškovi]*BidItems[Kol.]","v":{"v":6.5,"d":"6.50 Din."}},{"$f":"_xlfn.RANK.EQ(BidItems[[#This Row],[Ukupno]],BidItems[Ukupno])","v":7}]
[null,2,"Par rukavica, koža",{"v":7.75,"d":"7.75 Din."},{"$f":"BidItems[Troškovi]*BidItems[Kol.]","v":{"v":15.5,"d":"15.50 Din."}},{"$f":"_xlfn.RANK.EQ(BidItems[[#This Row],[Ukupno]],BidItems[Ukupno])","v":5}]
[null,2,"Naknade za radnike",{"v":100,"d":"100.00 Din."},{"$f":"BidItems[Troškovi]*BidItems[Kol.]","v":{"v":200,"d":"200.00 Din."}},{"$f":"_xlfn.RANK.EQ(BidItems[[#This Row],[Ukupno]],BidItems[Ukupno])","v":1}]
[{"$nulls":4},{"$f":"BidItems[Troškovi]*BidItems[Kol.]","v":0},{"$f":"_xlfn.RANK.EQ(BidItems[[#This Row],[Ukupno]],BidItems[Ukupno])","v":8}]
[{"$nulls":4},{"$f":"BidItems[Troškovi]*BidItems[Kol.]","v":0},{"$f":"_xlfn.RANK.EQ(BidItems[[#This Row],[Ukupno]],BidItems[Ukupno])","v":8}]
[{"$nulls":4},{"$f":"BidItems[Troškovi]*BidItems[Kol.]","v":0},{"$f":"_xlfn.RANK.EQ(BidItems[[#This Row],[Ukupno]],BidItems[Ukupno])","v":8}]
[{"$nulls":4},{"$f":"BidItems[Troškovi]*BidItems[Kol.]","v":0},{"$f":"_xlfn.RANK.EQ(BidItems[[#This Row],[Ukupno]],BidItems[Ukupno])","v":8}]
[{"$nulls":4},{"$f":"BidItems[Troškovi]*BidItems[Kol.]","v":0},{"$f":"_xlfn.RANK.EQ(BidItems[[#This Row],[Ukupno]],BidItems[Ukupno])","v":8}]
[{"$nulls":4},{"$f":"BidItems[Troškovi]*BidItems[Kol.]","v":0},{"$f":"_xlfn.RANK.EQ(BidItems[[#This Row],[Ukupno]],BidItems[Ukupno])","v":8}]
[{"$nulls":4},{"$f":"BidItems[Troškovi]*BidItems[Kol.]","v":0},{"$f":"_xlfn.RANK.EQ(BidItems[[#This Row],[Ukupno]],BidItems[Ukupno])","v":8}]
[{"$nulls":4},{"$f":"BidItems[Troškovi]*BidItems[Kol.]","v":0},{"$f":"_xlfn.RANK.EQ(BidItems[[#This Row],[Ukupno]],BidItems[Ukupno])","v":8}]
[{"$nulls":4},{"$f":"BidItems[Troškovi]*BidItems[Kol.]","v":0},{"$f":"_xlfn.RANK.EQ(BidItems[[#This Row],[Ukupno]],BidItems[Ukupno])","v":8}]
[{"$nulls":4},{"$f":"BidItems[Troškovi]*BidItems[Kol.]","v":0},{"$f":"_xlfn.RANK.EQ(BidItems[[#This Row],[Ukupno]],BidItems[Ukupno])","v":8}]
[{"$nulls":4},{"$f":"BidItems[Troškovi]*BidItems[Kol.]","v":0},{"$f":"_xlfn.RANK.EQ(BidItems[[#This Row],[Ukupno]],BidItems[Ukupno])","v":8}]
[{"$nulls":4},{"$f":"BidItems[Troškovi]*BidItems[Kol.]","v":0},{"$f":"_xlfn.RANK.EQ(BidItems[[#This Row],[Ukupno]],BidItems[Ukupno])","v":8}]
[{"$nulls":4},{"$f":"BidItems[Troškovi]*BidItems[Kol.]","v":0},{"$f":"_xlfn.RANK.EQ(BidItems[[#This Row],[Ukupno]],BidItems[Ukupno])","v":8}]
[{"$nulls":4},{"$f":"BidItems[Troškovi]*BidItems[Kol.]","v":0},{"$f":"_xlfn.RANK.EQ(BidItems[[#This Row],[Ukupno]],BidItems[Ukupno])","v":8}]
[{"$nulls":4},{"$f":"BidItems[Troškovi]*BidItems[Kol.]","v":0},{"$f":"_xlfn.RANK.EQ(BidItems[[#This Row],[Ukupno]],BidItems[Ukupno])","v":8}]
[{"$nulls":4},{"$f":"BidItems[Troškovi]*BidItems[Kol.]","v":0},{"$f":"_xlfn.RANK.EQ(BidItems[[#This Row],[Ukupno]],BidItems[Ukupno])","v":8}]
[1,{"$nulls":3},{"$f":"BidItems[Troškovi]*BidItems[Kol.]","v":0},{"$f":"_xlfn.RANK.EQ(BidItems[[#This Row],[Ukupno]],BidItems[Ukupno])","v":8}]
[2,null,null,"Podzbir",{"$f":"SUBTOTAL(109,BidItems[Ukupno])","v":{"v":443.18999999999994,"d":"443.19 Din."}},{"$f":"SUBTOTAL(109,BidItems[[ ]])","v":164}]
[4,null,null,"Poreska stopa",{"v":0.075,"d":"7.50%"}]
[5,null,null,"Porez",{"$f":"TaxRate*BidItems[[#Totals],[Ukupno]]","v":{"v":33.23924999999999,"d":"33.24 Din."}}]
[{"$nulls":3},"Sveukupno",{"$f":"Porez+BidItems[[#Totals],[Ukupno]]","v":{"v":476.4292499999999,"d":"476.43 Din."}}]
[]
[]
[]
[null,"ANALIZA MATERIJALA I TROŠKOVA"]
[]
[]
[null,null,"UKUPNO","BELEŠKE"]
[null,{"$f":"INDEX(BidItems[],MATCH(A31,BidItems[[ ]],0),2)","v":"Naknade za radnike"},{"$f":"INDEX(BidItems[],MATCH(A31,BidItems[[ ]],0),4)","v":{"v":200,"d":"$200.00"}}]
[null,{"$f":"INDEX(BidItems[],MATCH(A32,BidItems[[ ]],0),2)","v":"2x4x10 drvena građa"},{"$f":"INDEX(BidItems[],MATCH(A32,BidItems[[ ]],0),4)","v":{"v":99.39999999999999,"d":"$99.40"}}]
[null,{"$f":"INDEX(BidItems[],MATCH(A33,BidItems[[ ]],0),2)","v":"2x8x10 drvena građa"},{"$f":"INDEX(BidItems[],MATCH(A33,BidItems[[ ]],0),4)","v":{"v":33.75,"d":"$33.75"}}]
[null,{"$f":"INDEX(BidItems[],MATCH(A33,BidItems[[ ]],0),2)","v":"2x8x10 drvena građa"},{"$f":"INDEX(BidItems[],MATCH(A33,BidItems[[ ]],0),4)","v":{"v":33.75,"d":"$33.75"}}]
[null,{"$f":"INDEX(BidItems[],MATCH(A34,BidItems[[ ]],0),2)","v":"Par rukavica, koža"},{"$f":"INDEX(BidItems[],MATCH(A34,BidItems[[ ]],0),4)","v":{"v":15.5,"d":"$15.50"}}]